[Event "*** SCC Grand Prix: Titled Tuesday Blitz"]
[Site "Chess.com"]
[Date "2020.08.11"]
[Round "10"]
[White "LuisFSiles"]
[Black "tylityli"]
[Result "1-0"]
[WhiteElo "2301"]
[BlackElo "2160"]
[TimeControl "180+1"]
[EndTime "11:57:18 PDT"]
[Termination "LuisFSiles won by checkmate"]

1. e4 {[%clk 0:03:00.9]} 1... e5 {[%clk 0:02:57.1]} 2. Nf3 {[%clk 0:03:00.1]}
2... Nc6 {[%clk 0:02:55.2]} 3. Bc4 {[%clk 0:02:59.1]} 3... Nf6 {[%clk
0:02:53.8]} 4. d3 {[%clk 0:02:58.4]} 4... Be7 {[%clk 0:02:52.4]} 5. O-O {[%clk
0:02:57.2]} 5... O-O {[%clk 0:02:52.6]} 6. Re1 {[%clk 0:02:57.3]} 6... d6 {[%clk
0:02:49.4]} 7. c3 {[%clk 0:02:55.3]} 7... a6 {[%clk 0:02:47.9]} 8. Bb3 {[%clk
0:02:54.9]} 8... Bg4 {[%clk 0:02:47]} 9. h3 {[%clk 0:02:52.9]} 9... Bh5 {[%clk
0:02:44.5]} 10. Nbd2 {[%clk 0:02:52.1]} 10... d5 {[%clk 0:02:41.2]} 11. Qe2
{[%clk 0:02:35]} 11... d4 {[%clk 0:02:37.4]} 12. Nf1 {[%clk 0:02:26.9]} 12...
Qd7 {[%clk 0:02:21.3]} 13. Ng3 {[%clk 0:02:21.2]} 13... Bg6 {[%clk 0:02:21.3]}
14. Nh4 {[%clk 0:01:49.9]} 14... Rfd8 {[%clk 0:02:17.2]} 15. Rd1 {[%clk
0:01:32.5]} 15... Bf8 {[%clk 0:02:10.1]} 16. Bg5 {[%clk 0:01:15.1]} 16... Ne7
{[%clk 0:01:57.1]} 17. Bxf6 {[%clk 0:01:08.2]} 17... gxf6 {[%clk 0:01:56.6]} 18.
Qf3 {[%clk 0:01:00.2]} 18... Bg7 {[%clk 0:01:54.9]} 19. Nh5 {[%clk 0:00:57]}
19... f5 {[%clk 0:01:29.2]} 20. exf5 {[%clk 0:00:51]} 20... Nxf5 {[%clk
0:01:28.6]} 21. Nxg6 {[%clk 0:00:37.3]} 21... hxg6 {[%clk 0:01:26.3]} 22. Ng3
{[%clk 0:00:37.3]} 22... c5 {[%clk 0:01:14.9]} 23. Nxf5 {[%clk 0:00:35.4]} 23...
gxf5 {[%clk 0:01:06]} 24. cxd4 {[%clk 0:00:35]} 24... cxd4 {[%clk 0:01:03.5]}
25. Rac1 {[%clk 0:00:34.6]} 25... Rac8 {[%clk 0:00:57.5]} 26. g4 {[%clk
0:00:33.7]} 26... fxg4 {[%clk 0:00:48.2]} 27. hxg4 {[%clk 0:00:34.6]} 27... Qe7
{[%clk 0:00:39.5]} 28. Qf5 {[%clk 0:00:31.2]} 28... Rxc1 {[%clk 0:00:32.6]} 29.
Rxc1 {[%clk 0:00:32.1]} 29... Qd7 {[%clk 0:00:30.8]} 30. Qf3 {[%clk 0:00:30.4]}
30... Kf8 {[%clk 0:00:27]} 31. Rc5 {[%clk 0:00:29.4]} 31... f6 {[%clk
0:00:20.2]} 32. Rd5 {[%clk 0:00:28.4]} 32... Qc7 {[%clk 0:00:19.2]} 33. Rxd8+
{[%clk 0:00:28.8]} 33... Qxd8 {[%clk 0:00:19.5]} 34. Qxb7 {[%clk 0:00:29.4]}
34... e4 {[%clk 0:00:16.8]} 35. Qf7# {[%clk 0:00:28.4]} 1-0

[Event "*** SCC Grand Prix: Titled Tuesday Blitz"]
[Site "Chess.com"]
[Date "2020.08.11"]
[Round "10"]
[White "KyronGriffith"]
[Black "Noam_Vitenberg"]
[Result "0-1"]
[WhiteElo "2354"]
[BlackElo "2509"]
[TimeControl "180+1"]
[EndTime "11:57:20 PDT"]
[Termination "Noam_Vitenberg won by resignation"]

1. e4 {[%clk 0:03:00.9]} 1... e5 {[%clk 0:02:59.4]} 2. Nf3 {[%clk 0:03:01]} 2...
Nc6 {[%clk 0:02:59.1]} 3. Nc3 {[%clk 0:03:01.5]} 3... Nf6 {[%clk 0:02:58.9]} 4.
d4 {[%clk 0:03:02.1]} 4... exd4 {[%clk 0:02:59]} 5. Nxd4 {[%clk 0:03:03]} 5...
Bb4 {[%clk 0:02:59]} 6. Nxc6 {[%clk 0:03:03.5]} 6... bxc6 {[%clk 0:02:58.2]} 7.
Bd3 {[%clk 0:03:04.2]} 7... d5 {[%clk 0:02:57.8]} 8. exd5 {[%clk 0:03:05.1]}
8... O-O {[%clk 0:02:58]} 9. O-O {[%clk 0:03:05.4]} 9... Bg4 {[%clk 0:02:58.1]}
10. f3 {[%clk 0:03:01.3]} 10... Bh5 {[%clk 0:02:58.2]} 11. Bg5 {[%clk
0:03:00.9]} 11... Qd6 {[%clk 0:02:57]} 12. Qe1 {[%clk 0:03:01]} 12... Rfe8
{[%clk 0:02:53.6]} 13. Qh4 {[%clk 0:02:57.3]} 13... Bg6 {[%clk 0:02:41.5]} 14.
Bxf6 {[%clk 0:02:54.6]} 14... gxf6 {[%clk 0:02:33.7]} 15. Bxg6 {[%clk
0:02:50.5]} 15... fxg6 {[%clk 0:02:08.7]} 16. Ne4 {[%clk 0:02:50.7]} 16... Qe7
{[%clk 0:02:01.2]} 17. dxc6 {[%clk 0:02:04.5]} 17... Rad8 {[%clk 0:01:41.7]} 18.
Rad1 {[%clk 0:01:57.2]} 18... f5 {[%clk 0:01:29.2]} 19. Qxe7 {[%clk 0:01:17.3]}
19... Bxe7 {[%clk 0:01:30.1]} 20. Nc3 {[%clk 0:01:12.4]} 20... Bc5+ {[%clk
0:01:16.7]} 21. Kh1 {[%clk 0:01:11.5]} 21... Bd4 {[%clk 0:01:07.1]} 22. Nb5
{[%clk 0:01:04.5]} 22... Bb6 {[%clk 0:01:06.5]} 23. Rd7 {[%clk 0:01:01]} 23...
Rc8 {[%clk 0:00:59.5]} 24. Nd4 {[%clk 0:00:39.4]} 24... Rb8 {[%clk 0:00:56.8]}
25. b3 {[%clk 0:00:37.2]} 25... Re3 {[%clk 0:00:53.4]} 26. h4 {[%clk 0:00:32.7]}
26... Rbe8 {[%clk 0:00:51.9]} 27. Nb5 {[%clk 0:00:26]} 27... Rc8 {[%clk
0:00:24.9]} 28. Rfd1 {[%clk 0:00:24.7]} 28... a6 {[%clk 0:00:24.3]} 29. Nd4
{[%clk 0:00:24.2]} 29... Rce8 {[%clk 0:00:23.2]} 30. Kh2 {[%clk 0:00:23.3]}
30... Bc5 {[%clk 0:00:22.2]} 31. Rxc7 {[%clk 0:00:19.3]} 31... Bd6+ {[%clk
0:00:22]} 32. Kg1 {[%clk 0:00:17.6]} 32... Bxc7 {[%clk 0:00:21.8]} 0-1

[Event "*** SCC Grand Prix: Titled Tuesday Blitz"]
[Site "Chess.com"]
[Date "2020.08.11"]
[Round "10"]
[White "GoldenShare"]
[Black "Virgo15"]
[Result "0-1"]
[WhiteElo "2514"]
[BlackElo "2704"]
[TimeControl "180+1"]
[EndTime "11:57:21 PDT"]
[Termination "Virgo15 won by resignation"]

1. e4 {[%clk 0:02:59.9]} 1... e6 {[%clk 0:03:00.6]} 2. d4 {[%clk 0:02:59.7]}
2... d5 {[%clk 0:03:01]} 3. Nd2 {[%clk 0:03:00.6]} 3... Nc6 {[%clk 0:03:00.4]}
4. Ngf3 {[%clk 0:02:58]} 4... Nf6 {[%clk 0:03:00.7]} 5. e5 {[%clk 0:02:58.4]}
5... Nd7 {[%clk 0:03:01.3]} 6. Bd3 {[%clk 0:02:58.7]} 6... Nb4 {[%clk
0:03:00.6]} 7. Be2 {[%clk 0:02:58.8]} 7... c5 {[%clk 0:03:01.1]} 8. c3 {[%clk
0:02:59.1]} 8... Nc6 {[%clk 0:03:01.6]} 9. O-O {[%clk 0:02:48]} 9... Qb6 {[%clk
0:03:02]} 10. Nb3 {[%clk 0:02:14.4]} 10... a5 {[%clk 0:03:00.4]} 11. a4 {[%clk
0:02:13.3]} 11... c4 {[%clk 0:03:00.3]} 12. Nbd2 {[%clk 0:02:12.3]} 12... Be7
{[%clk 0:03:00.7]} 13. Re1 {[%clk 0:02:12.5]} 13... Qc7 {[%clk 0:02:59.8]} 14.
Nf1 {[%clk 0:02:12.9]} 14... b6 {[%clk 0:03:00.1]} 15. Ng3 {[%clk 0:02:09.1]}
15... Bb7 {[%clk 0:03:00.2]} 16. Nh5 {[%clk 0:02:00.7]} 16... O-O-O {[%clk
0:02:59.4]} 17. Bg5 {[%clk 0:01:51.6]} 17... h6 {[%clk 0:02:52.6]} 18. Bxe7
{[%clk 0:01:49.5]} 18... Nxe7 {[%clk 0:02:53.5]} 19. Nxg7 {[%clk 0:01:36.6]}
19... h5 {[%clk 0:02:54.4]} 20. Ng5 {[%clk 0:01:32.3]} 20... Rdg8 {[%clk
0:02:53.7]} 21. N5xe6 {[%clk 0:01:25.4]} 21... fxe6 {[%clk 0:02:51.3]} 22. Nxe6
{[%clk 0:01:26.3]} 22... Qc6 {[%clk 0:02:47.6]} 23. Nf4 {[%clk 0:01:26.5]} 23...
Qh6 {[%clk 0:02:34.6]} 24. Nxh5 {[%clk 0:01:08.4]} 24... Ng6 {[%clk 0:02:19.5]}
25. Bg4 {[%clk 0:00:57.8]} 25... Nf4 {[%clk 0:02:14.7]} 26. e6 {[%clk
0:00:47.8]} 26... Nf6 {[%clk 0:02:03.5]} 27. Nxf4 {[%clk 0:00:36.7]} 27... Qxh2+
{[%clk 0:01:59]} 28. Kf1 {[%clk 0:00:37]} 28... Qxf4 {[%clk 0:01:59.3]} 29. Qf3
{[%clk 0:00:29.5]} 29... Rh1+ {[%clk 0:01:54.6]} 30. Ke2 {[%clk 0:00:29.7]}
30... Rxe1+ {[%clk 0:01:54.7]} 31. Kxe1 {[%clk 0:00:27.5]} 31... Rxg4 {[%clk
0:01:48.8]} 32. Qxf4 {[%clk 0:00:27.5]} 32... Rxf4 {[%clk 0:01:48.2]} 33. f3
{[%clk 0:00:28.4]} 33... Kc7 {[%clk 0:01:42.8]} 34. Kf2 {[%clk 0:00:28.8]} 34...
Kd6 {[%clk 0:01:42.8]} 35. Re1 {[%clk 0:00:28.8]} 35... Ke7 {[%clk 0:01:31.7]}
36. g4 {[%clk 0:00:26.7]} 36... Nxg4+ {[%clk 0:01:29.9]} 37. Kg3 {[%clk
0:00:27.1]} 37... Rf6 {[%clk 0:01:29.9]} 38. Kxg4 {[%clk 0:00:24.5]} 38... Rxe6
{[%clk 0:01:29]} 39. Rh1 {[%clk 0:00:25.1]} 39... Bc8 {[%clk 0:01:21.4]} 40.
Rh7+ {[%clk 0:00:23.4]} 40... Kd6 {[%clk 0:01:20.9]} 41. Kg5 {[%clk 0:00:20.9]}
41... Re2 {[%clk 0:01:19.1]} 42. f4 {[%clk 0:00:19.6]} 42... Rxb2 {[%clk
0:01:13.9]} 43. f5 {[%clk 0:00:19.8]} 43... Rg2+ {[%clk 0:01:13.8]} 44. Kf6
{[%clk 0:00:20.7]} 44... Rf2 {[%clk 0:01:13.7]} 45. Rh5 {[%clk 0:00:17.1]} 45...
Rxf5+ {[%clk 0:01:13.2]} 46. Rxf5 {[%clk 0:00:18]} 46... Bxf5 {[%clk 0:01:13.7]}
47. Kxf5 {[%clk 0:00:18.9]} 47... b5 {[%clk 0:01:14.5]} 48. axb5 {[%clk
0:00:19.5]} 48... a4 {[%clk 0:01:13.8]} 49. b6 {[%clk 0:00:20.4]} 49... a3
{[%clk 0:01:13.7]} 50. b7 {[%clk 0:00:20.6]} 50... Kc7 {[%clk 0:01:14.2]} 0-1

[Event "*** SCC Grand Prix: Titled Tuesday Blitz"]
[Site "Chess.com"]
[Date "2020.08.11"]
[Round "10"]
[White "grunbergmihai"]
[Black "Oglob71"]
[Result "1-0"]
[WhiteElo "2468"]
[BlackElo "2559"]
[TimeControl "180+1"]
[EndTime "11:57:23 PDT"]
[Termination "grunbergmihai won by checkmate"]

1. Nf3 {[%clk 0:03:00.9]} 1... Nf6 {[%clk 0:02:55.6]} 2. c4 {[%clk 0:03:00.7]}
2... e6 {[%clk 0:02:55.3]} 3. g3 {[%clk 0:03:00.7]} 3... b6 {[%clk 0:02:55.2]}
4. Bg2 {[%clk 0:03:01.6]} 4... Bb7 {[%clk 0:02:55.4]} 5. O-O {[%clk 0:03:02.5]}
5... c5 {[%clk 0:02:54.5]} 6. d4 {[%clk 0:03:02.6]} 6... cxd4 {[%clk 0:02:54.3]}
7. Qxd4 {[%clk 0:03:02.7]} 7... Nc6 {[%clk 0:02:54.8]} 8. Qf4 {[%clk 0:03:02.7]}
8... Qb8 {[%clk 0:02:55.2]} 9. Nc3 {[%clk 0:03:02.1]} 9... Na5 {[%clk 0:02:54]}
10. b3 {[%clk 0:02:57.2]} 10... a6 {[%clk 0:02:53.2]} 11. Rd1 {[%clk 0:02:55.5]}
11... d5 {[%clk 0:02:46.8]} 12. cxd5 {[%clk 0:02:50.5]} 12... Nxd5 {[%clk
0:02:45.2]} 13. Nxd5 {[%clk 0:02:47.8]} 13... Bxd5 {[%clk 0:02:45.7]} 14. Ne5
{[%clk 0:02:31]} 14... f6 {[%clk 0:02:38.8]} 15. Bxd5 {[%clk 0:02:20.9]} 15...
exd5 {[%clk 0:02:39]} 16. Qa4+ {[%clk 0:02:16.2]} 16... b5 {[%clk 0:02:34.7]}
17. Qxa5 {[%clk 0:02:16.3]} 17... Qxe5 {[%clk 0:02:34.2]} 18. Bf4 {[%clk
0:02:15.5]} 18... Qe6 {[%clk 0:02:31]} 19. a4 {[%clk 0:01:57.3]} 19... bxa4
{[%clk 0:02:22.9]} 20. Qxa4+ {[%clk 0:01:56]} 20... Kf7 {[%clk 0:02:22.2]} 21.
Rac1 {[%clk 0:01:49]} 21... Be7 {[%clk 0:02:19.8]} 22. Rd2 {[%clk 0:01:13.1]}
22... Rhc8 {[%clk 0:02:18.1]} 23. Rdc2 {[%clk 0:01:09.3]} 23... Rxc2 {[%clk
0:02:16.2]} 24. Rxc2 {[%clk 0:01:09.2]} 24... g5 {[%clk 0:02:16.7]} 25. Be3
{[%clk 0:01:07.9]} 25... Rb8 {[%clk 0:02:11.2]} 26. Rc6 {[%clk 0:01:06.4]} 26...
Qe4 {[%clk 0:02:09.1]} 27. Rxa6 {[%clk 0:01:03.3]} 27... Qxa4 {[%clk 0:02:06.6]}
28. bxa4 {[%clk 0:01:03.2]} 28... Rb1+ {[%clk 0:02:07.2]} 29. Kg2 {[%clk
0:01:02.8]} 29... Rd1 {[%clk 0:02:07.7]} 30. Bb6 {[%clk 0:00:59.8]} 30... d4
{[%clk 0:02:02.8]} 31. Ra7 {[%clk 0:00:59.5]} 31... Ke6 {[%clk 0:02:03]} 32. a5
{[%clk 0:00:57.6]} 32... d3 {[%clk 0:01:51.8]} 33. exd3 {[%clk 0:00:57.3]} 33...
Rxd3 {[%clk 0:01:52.4]} 34. a6 {[%clk 0:00:56.5]} 34... Rd2 {[%clk 0:01:49.7]}
35. Rb7 {[%clk 0:00:46.7]} 35... Ra2 {[%clk 0:01:49.9]} 36. a7 {[%clk
0:00:46.4]} 36... Bd6 {[%clk 0:01:48.1]} 37. Rb8 {[%clk 0:00:44.6]} 37... Rxa7
{[%clk 0:01:23.8]} 38. Bxa7 {[%clk 0:00:42.1]} 38... Bxb8 {[%clk 0:01:23.9]} 39.
Bxb8 {[%clk 0:00:41.9]} 39... h5 {[%clk 0:01:24.3]} 40. Kf3 {[%clk 0:00:40.1]}
40... Kf5 {[%clk 0:01:24.6]} 41. Bc7 {[%clk 0:00:39.4]} 41... Kg6 {[%clk
0:01:21.8]} 42. Ke4 {[%clk 0:00:37.9]} 42... h4 {[%clk 0:01:18.8]} 43. g4 {[%clk
0:00:36.6]} 43... f5+ {[%clk 0:01:16.3]} 44. gxf5+ {[%clk 0:00:36.2]} 44... Kh5
{[%clk 0:01:15.7]} 45. Ke5 {[%clk 0:00:34.5]} 45... h3 {[%clk 0:01:16]} 46. f6
{[%clk 0:00:32.3]} 46... Kg4 {[%clk 0:01:14.7]} 47. f7 {[%clk 0:00:30.9]} 47...
Kf3 {[%clk 0:01:15.2]} 48. f8=Q+ {[%clk 0:00:29.7]} 48... Kg2 {[%clk 0:01:15.8]}
49. Kf5 {[%clk 0:00:26.6]} 49... Kxf2 {[%clk 0:01:13.7]} 50. Kg4+ {[%clk
0:00:24.2]} 50... Kg2 {[%clk 0:01:14.2]} 51. Qf3+ {[%clk 0:00:23]} 51... Kg1
{[%clk 0:01:14.8]} 52. Bb6+ {[%clk 0:00:21.2]} 52... Kxh2 {[%clk 0:01:15]} 53.
Qxh3# {[%clk 0:00:19.1]} 1-0

[Event "*** SCC Grand Prix: Titled Tuesday Blitz"]
[Site "Chess.com"]
[Date "2020.08.11"]
[Round "10"]
[White "GustavoJuarezF"]
[Black "tteshan"]
[Result "1-0"]
[WhiteElo "2055"]
[BlackElo "2220"]
[TimeControl "180+1"]
[EndTime "11:57:23 PDT"]
[Termination "GustavoJuarezF won by resignation"]

1. c4 {[%clk 0:03:00.9]} 1... Nf6 {[%clk 0:02:59]} 2. Nc3 {[%clk 0:03:00.2]}
2... g6 {[%clk 0:02:58.5]} 3. g3 {[%clk 0:02:59.9]} 3... Bg7 {[%clk 0:02:58.5]}
4. Bg2 {[%clk 0:03:00.1]} 4... O-O {[%clk 0:02:59.4]} 5. d3 {[%clk 0:03:00]}
5... e5 {[%clk 0:02:59.9]} 6. e4 {[%clk 0:02:58.2]} 6... d6 {[%clk 0:02:58.9]}
7. Nge2 {[%clk 0:02:57.8]} 7... Nc6 {[%clk 0:02:56.4]} 8. h3 {[%clk 0:02:57.9]}
8... Nd7 {[%clk 0:02:56.2]} 9. Be3 {[%clk 0:02:57.5]} 9... f5 {[%clk 0:02:56.6]}
10. exf5 {[%clk 0:02:53.4]} 10... gxf5 {[%clk 0:02:56.5]} 11. Qd2 {[%clk
0:02:47.3]} 11... Nd4 {[%clk 0:02:55.6]} 12. Nb5 {[%clk 0:02:28.4]} 12... Nxb5
{[%clk 0:02:51.8]} 13. cxb5 {[%clk 0:02:27.4]} 13... Nf6 {[%clk 0:02:52.7]} 14.
Bh6 {[%clk 0:02:25]} 14... Qe8 {[%clk 0:02:50.8]} 15. Bxg7 {[%clk 0:02:20.8]}
15... Kxg7 {[%clk 0:02:51.7]} 16. a4 {[%clk 0:02:15.2]} 16... Be6 {[%clk
0:02:50.6]} 17. Bxb7 {[%clk 0:02:11.2]} 17... Rd8 {[%clk 0:02:49.6]} 18. Bg2
{[%clk 0:02:09.3]} 18... d5 {[%clk 0:02:49.5]} 19. d4 {[%clk 0:02:05.1]} 19...
e4 {[%clk 0:02:48.2]} 20. Nf4 {[%clk 0:02:03.5]} 20... Bf7 {[%clk 0:02:48.4]}
21. O-O {[%clk 0:02:01.6]} 21... Kh8 {[%clk 0:02:41.6]} 22. Rfe1 {[%clk
0:02:00.9]} 22... Rg8 {[%clk 0:02:40.8]} 23. Rac1 {[%clk 0:01:57.2]} 23... Qe7
{[%clk 0:02:38.7]} 24. Qc3 {[%clk 0:01:55.9]} 24... Ne8 {[%clk 0:02:29.4]} 25.
b4 {[%clk 0:01:53.8]} 25... h5 {[%clk 0:02:28.4]} 26. h4 {[%clk 0:01:50.6]}
26... Rg4 {[%clk 0:02:09.6]} 27. Qc6 {[%clk 0:01:42.2]} 27... Rd6 {[%clk
0:02:07.7]} 28. Qc5 {[%clk 0:01:31.4]} 28... Rxf4 {[%clk 0:02:05.7]} 29. gxf4
{[%clk 0:01:27.8]} 29... Qxh4 {[%clk 0:02:05.8]} 30. Re3 {[%clk 0:01:18.5]}
30... Qxf4 {[%clk 0:01:56.4]} 31. Qxa7 {[%clk 0:01:05.2]} 31... Rg6 {[%clk
0:01:55.2]} 32. Rxc7 {[%clk 0:00:57.3]} 32... Nxc7 {[%clk 0:01:49.8]} 33. Qb8+
{[%clk 0:00:54.9]} 33... Kh7 {[%clk 0:01:47.3]} 34. b6 {[%clk 0:00:54.3]} 34...
Ne6 {[%clk 0:01:42.8]} 35. Qxf4 {[%clk 0:00:48.8]} 35... Nxf4 {[%clk 0:01:43.3]}
36. Rg3 {[%clk 0:00:48.1]} 36... Ne2+ {[%clk 0:01:40]} 37. Kh2 {[%clk
0:00:46.5]} 37... Nxg3 {[%clk 0:01:39.8]} 38. a5 {[%clk 0:00:44.4]} 38... Be6
{[%clk 0:01:26.6]} 39. b7 {[%clk 0:00:42.1]} 39... Rg8 {[%clk 0:01:25.5]} 40. a6
{[%clk 0:00:41.4]} 40... Rb8 {[%clk 0:01:24.8]} 41. a7 {[%clk 0:00:40.8]} 41...
Rxb7 {[%clk 0:01:21.2]} 42. a8=Q {[%clk 0:00:40.4]} 42... Rg7 {[%clk 0:01:21]}
43. fxg3 {[%clk 0:00:38.2]} 43... h4 {[%clk 0:01:20.3]} 44. gxh4 {[%clk
0:00:35.9]} 44... f4 {[%clk 0:01:20.9]} 45. Qe8 {[%clk 0:00:31.2]} 45... Bf7
{[%clk 0:01:19.3]} 46. Qe5 {[%clk 0:00:29.8]} 46... f3 {[%clk 0:01:19.5]} 47.
Bxf3 {[%clk 0:00:22.9]} 47... exf3 {[%clk 0:01:18.6]} 48. Qf5+ {[%clk
0:00:23.1]} 48... Bg6 {[%clk 0:01:19]} 49. Qxf3 {[%clk 0:00:22.8]} 49... Be4
{[%clk 0:01:19.5]} 50. Qf4 {[%clk 0:00:20.5]} 50... Rg2+ {[%clk 0:01:15.3]} 51.
Kh3 {[%clk 0:00:20.7]} 51... Rb2 {[%clk 0:01:15.3]} 52. Qf7+ {[%clk 0:00:19.5]}
52... Kh8 {[%clk 0:01:13.8]} 53. Kg4 {[%clk 0:00:17.5]} 53... Rxb4 {[%clk
0:01:11.2]} 54. Qf8+ {[%clk 0:00:16.9]} 54... Kh7 {[%clk 0:01:10.8]} 55. Qxb4
{[%clk 0:00:16.8]} 1-0

[Event "*** SCC Grand Prix: Titled Tuesday Blitz"]
[Site "Chess.com"]
[Date "2020.08.11"]
[Round "10"]
[White "Koksik_13"]
[Black "Anton_Demchenko"]
[Result "1/2-1/2"]
[WhiteElo "2651"]
[BlackElo "2841"]
[TimeControl "180+1"]
[EndTime "11:57:25 PDT"]
[Termination "Game drawn by repetition"]

1. d4 {[%clk 0:03:00.7]} 1... d5 {[%clk 0:03:00.3]} 2. Nc3 {[%clk 0:03:00.7]}
2... Nf6 {[%clk 0:03:00.2]} 3. Bf4 {[%clk 0:03:00.7]} 3... c5 {[%clk 0:02:59.6]}
4. e3 {[%clk 0:03:00.6]} 4... cxd4 {[%clk 0:03:00.1]} 5. exd4 {[%clk 0:03:00.4]}
5... a6 {[%clk 0:03:00.7]} 6. Bd3 {[%clk 0:02:59.2]} 6... Nc6 {[%clk 0:03:01.4]}
7. Nge2 {[%clk 0:02:59.9]} 7... Bg4 {[%clk 0:03:01.2]} 8. Qd2 {[%clk 0:03:00.3]}
8... Bh5 {[%clk 0:03:00.7]} 9. Bg5 {[%clk 0:02:48.2]} 9... Bg6 {[%clk
0:02:57.8]} 10. Bxf6 {[%clk 0:02:47.3]} 10... gxf6 {[%clk 0:02:57.8]} 11. O-O-O
{[%clk 0:02:29.1]} 11... e6 {[%clk 0:02:57.9]} 12. Nf4 {[%clk 0:02:28.1]} 12...
Bh6 {[%clk 0:02:45.5]} 13. Kb1 {[%clk 0:02:10.4]} 13... Qd6 {[%clk 0:02:45.2]}
14. g3 {[%clk 0:02:08.5]} 14... O-O-O {[%clk 0:02:39.8]} 15. Qe2 {[%clk
0:01:57.2]} 15... Bxf4 {[%clk 0:02:32.4]} 16. gxf4 {[%clk 0:01:56.9]} 16... Nxd4
{[%clk 0:02:27.7]} 17. Qe3 {[%clk 0:01:56]} 17... Nf5 {[%clk 0:02:24.7]} 18. Qa7
{[%clk 0:01:50.9]} 18... Qb8 {[%clk 0:02:24.4]} 19. Qc5+ {[%clk 0:01:47.1]}
19... Qc7 {[%clk 0:02:24.7]} 20. Qa7 {[%clk 0:01:46.7]} 20... Qxf4 {[%clk
0:01:51.3]} 21. Bxa6 {[%clk 0:01:20.7]} 21... bxa6 {[%clk 0:01:48.2]} 22. Qxa6+
{[%clk 0:01:20]} 22... Kd7 {[%clk 0:01:47.3]} 23. Nxd5 {[%clk 0:01:17.9]} 23...
exd5 {[%clk 0:01:22.1]} 24. Rxd5+ {[%clk 0:01:13.3]} 24... Nd6 {[%clk
0:01:21.2]} 25. Re1 {[%clk 0:00:49.8]} 25... Qb4 {[%clk 0:00:53.2]} 26. Rxd6+
{[%clk 0:00:24.5]} 26... Qxd6 {[%clk 0:00:53]} 27. Qb7+ {[%clk 0:00:24.7]} 27...
Qc7 {[%clk 0:00:53.1]} 28. Qd5+ {[%clk 0:00:05.3]} 28... Kc8 {[%clk 0:00:47.7]}
29. Qa8+ {[%clk 0:00:04.8]} 29... Qb8 {[%clk 0:00:44.4]} 30. Qc6+ {[%clk
0:00:04.4]} 30... Qc7 {[%clk 0:00:44.9]} 31. Qa8+ {[%clk 0:00:04.3]} 31... Kd7
{[%clk 0:00:44.7]} 32. Qd5+ {[%clk 0:00:04]} 32... Qd6 {[%clk 0:00:42.7]} 33.
Qb7+ {[%clk 0:00:04]} 33... Qc7 {[%clk 0:00:43.5]} 34. Qd5+ {[%clk 0:00:04.6]}
1/2-1/2

[Event "*** SCC Grand Prix: Titled Tuesday Blitz"]
[Site "Chess.com"]
[Date "2020.08.11"]
[Round "10"]
[White "Alex_Belezky"]
[Black "Shield12"]
[Result "0-1"]
[WhiteElo "2487"]
[BlackElo "2827"]
[TimeControl "180+1"]
[EndTime "11:57:26 PDT"]
[Termination "Shield12 won by resignation"]

1. Nf3 {[%clk 0:02:45.6]} 1... c5 {[%clk 0:03:00]} 2. g3 {[%clk 0:02:45.4]} 2...
g6 {[%clk 0:03:00.6]} 3. Bg2 {[%clk 0:02:46]} 3... Bg7 {[%clk 0:03:01.5]} 4. d3
{[%clk 0:02:46.7]} 4... Nc6 {[%clk 0:03:02.4]} 5. O-O {[%clk 0:02:47]} 5... d6
{[%clk 0:03:03]} 6. c3 {[%clk 0:02:47.1]} 6... Nf6 {[%clk 0:03:02.4]} 7. Qa4
{[%clk 0:02:47.1]} 7... Bd7 {[%clk 0:02:59.6]} 8. Qh4 {[%clk 0:02:47.2]} 8... h5
{[%clk 0:02:57.7]} 9. Qa4 {[%clk 0:02:45.1]} 9... h4 {[%clk 0:02:55.4]} 10. Nxh4
{[%clk 0:02:43.6]} 10... Qc8 {[%clk 0:02:52.7]} 11. Nd2 {[%clk 0:02:38.6]} 11...
Bh3 {[%clk 0:02:49.9]} 12. Ndf3 {[%clk 0:02:35]} 12... Bxg2 {[%clk 0:02:48.7]}
13. Nxg2 {[%clk 0:02:33.9]} 13... Qh3 {[%clk 0:02:46.5]} 14. Nf4 {[%clk
0:02:30.4]} 14... Qd7 {[%clk 0:02:46.1]} 15. h4 {[%clk 0:02:28.8]} 15... e5
{[%clk 0:02:41.8]} 16. Ng2 {[%clk 0:02:27.1]} 16... a6 {[%clk 0:02:17.1]} 17.
Bg5 {[%clk 0:02:21.4]} 17... O-O {[%clk 0:02:16.1]} 18. Bxf6 {[%clk 0:02:15.5]}
18... Bxf6 {[%clk 0:02:17]} 19. Ne3 {[%clk 0:02:15.6]} 19... Rad8 {[%clk
0:02:15.7]} 20. Qg4 {[%clk 0:02:12.3]} 20... Qxg4 {[%clk 0:02:09.9]} 21. Nxg4
{[%clk 0:02:12.2]} 21... Bg7 {[%clk 0:02:10.8]} 22. Ne3 {[%clk 0:02:07.1]} 22...
d5 {[%clk 0:02:08]} 23. c4 {[%clk 0:02:05.3]} 23... e4 {[%clk 0:02:07.8]} 24.
dxe4 {[%clk 0:01:52]} 24... dxe4 {[%clk 0:02:08.7]} 25. Ng5 {[%clk 0:01:51.4]}
25... Rfe8 {[%clk 0:02:06.4]} 26. Rad1 {[%clk 0:01:45.4]} 26... Nd4 {[%clk
0:02:00.1]} 27. Rfe1 {[%clk 0:01:44.3]} 27... b5 {[%clk 0:02:00.1]} 28. b3
{[%clk 0:01:41]} 28... f6 {[%clk 0:01:59.9]} 29. Nh3 {[%clk 0:01:40.5]} 29...
Bh6 {[%clk 0:01:58.7]} 30. Nd5 {[%clk 0:01:36.5]} 30... Kf7 {[%clk 0:01:58.7]}
31. Nc7 {[%clk 0:01:26.9]} 31... Nxe2+ {[%clk 0:01:58.3]} 32. Kf1 {[%clk
0:01:27]} 32... Rxd1 {[%clk 0:01:59.2]} 33. Rxd1 {[%clk 0:01:26.6]} 33... Re7
{[%clk 0:01:58.1]} 34. Nxa6 {[%clk 0:01:25.6]} 34... Nc3 {[%clk 0:01:56]} 35.
Re1 {[%clk 0:01:18.3]} 35... bxc4 {[%clk 0:01:53.6]} 36. bxc4 {[%clk 0:01:11.4]}
36... Nxa2 {[%clk 0:01:48.9]} 37. Nxc5 {[%clk 0:01:10.5]} 37... f5 {[%clk
0:01:49.4]} 38. Rd1 {[%clk 0:00:39.8]} 38... Re5 {[%clk 0:01:27.5]} 39. Rd5
{[%clk 0:00:35.2]} 39... Rxd5 {[%clk 0:01:19.2]} 40. cxd5 {[%clk 0:00:35.2]}
40... Nb4 {[%clk 0:01:20.1]} 41. d6 {[%clk 0:00:35.5]} 41... Bf8 {[%clk
0:01:19.8]} 42. d7 {[%clk 0:00:34.1]} 42... Nc6 {[%clk 0:01:16.8]} 43. Nf4
{[%clk 0:00:29]} 43... Bxc5 {[%clk 0:01:15.7]} 44. h5 {[%clk 0:00:15.5]} 44...
gxh5 {[%clk 0:01:15.6]} 45. Nxh5 {[%clk 0:00:15.2]} 45... Bd6 {[%clk 0:01:16]}
46. f3 {[%clk 0:00:14.2]} 46... exf3 {[%clk 0:01:10.6]} 47. Kf2 {[%clk
0:00:12.5]} 47... Kg6 {[%clk 0:01:11.2]} 48. Nf4+ {[%clk 0:00:07.2]} 48... Bxf4
{[%clk 0:01:11]} 49. gxf4 {[%clk 0:00:07.5]} 49... Kf6 {[%clk 0:01:11.6]} 50.
Kxf3 {[%clk 0:00:07.8]} 50... Ke6 {[%clk 0:01:11.9]} 0-1